Cogmind - Beta 16.1 @@@ ROGUE MODE // 2026.04.20 @ 14:19:35 Player: Nomad Result: Destroyed by Y-45 Defender with Heavy Assault Rifle Performance ------------- Evolutions (2) 1000 Regions Visited (3) 600 Robots Destroyed (45) 225 Value Destroyed (1504) 1504 Prototype IDs (1) 20 Alien Tech Used (0) 0 Bonus (0) 0 TOTAL SCORE: 3349 Bonus ------- None Cogmind --------- Core Integrity 0/550 Matter 300/300 Energy 89/100 System Corruption 0% Temperature Cool (9) Movement Walking (130) Location -8/Materials Parts ------- > --- POWER (3) -------- (None) > --- PROPULSION (3) --- Titanium Leg > --- UTILITY (2) ------ Actuator Array > --- WEAPON (3) ------- Katana > --- INVENTORY (5) ---- Particle Gun Improved Grenade Launcher Improved Grenade Launcher Improved Datajack Peak State ------------ > --- POWER ------------ Improved Ion Engine Heavy Ion Engine Light Nuclear Core > --- PROPULSION ------- Carbon-fiber Leg Titanium Leg Titanium Leg > --- UTILITY ---------- Advanced Heat Sink Reaction Control System > --- WEAPON ----------- EM Pulse Cannon Improved Grenade Launcher Katana > --- INVENTORY -------- Improved Heat Sink Reaction Control System Improved Grenade Launcher Improved Datajack [Rating: 35] Favorites ----------- Power Heavy Ion Engine Engine Heavy Ion Engine Power Core Light Nuclear Core Propulsion Titanium Leg Leg Titanium Leg Utility Reaction Control System Device Reaction Control System Storage Small Storage Unit Processor Terrain Scan Processor Weapon Improved Light Cannon Energy Gun Beam Rifle Energy Cannon EM Pulse Cannon Ballistic Gun Assault Rifle Ballistic Cannon Improved Light Cannon Launcher Improved Grenade Launcher Impact Weapon Mace Slashing Weapon Katana Special Melee Weapon Improved Datajack Build | -11 -10 -9 -8 ------- Run | Yrd Mat Mat Mat Slots Evolved 4 | . . 2 2 Power 2 | . . 1 1 Propulsion 1 | . . 1 . Utility . | . . . . Weapon 1 | . . . 1 Parts Attached 54 | 5 7 25 17 Power 12 | 1 1 6 4 Engine 10 | 1 . 6 3 Core 2 | . 1 . 1 Reactor . | . . . . Propulsion 14 | 2 2 6 4 Treads . | . . . . Leg 14 | 2 2 6 4 Wheel . | . . . . Hover . | . . . . Flight . | . . . . Utility 12 | . 2 7 3 Device 10 | . 1 6 3 Storage 1 | . 1 . . Processor 1 | . . 1 . Hackware . | . . . . Protection . | . . . . Artifact . | . . . . Weapon 16 | 2 2 6 6 Energy Gun 8 | 1 2 3 2 Energy Cannon 1 | . . . 1 Ballistic Gun 2 | 1 . 1 . Ballistic Cannon 1 | . . 1 . Launcher 1 | . . . 1 Special Weapon . | . . . . Impact Weapon 1 | . . 1 . Slashing Weapon 1 | . . . 1 Piercing Weapon . | . . . . Special Melee Weapon 1 | . . . 1 Unidentified Prototypes 1 | . . 1 . Parts Lost 18 | . 1 6 11 Power 5 | . . 1 4 Propulsion 5 | . . 2 3 Utility 4 | . . 2 2 Weapon 4 | . 1 1 2 Highest Loss Streak 4 | . 1 3 4 To Critical Strikes . | . . . . Average Backups 2 | 1 . 1 3 Power . | . . . . Propulsion . | . . . . Utility . | . . . . Weapon 1 | . . 1 1 Tool/Special . | . . . . Unused Backups 3 | . . . 3 Power 1 | . . . 1 Propulsion . | . . . . Utility . | . . . . Weapon 2 | . . . 2 Tool/Special . | . . . . Average Slot Usage (%) 89 | . 86 93 86 Engine 16 | . 2 18 16 Core 5 | . 11 2 7 Leg 28 | . 28 32 23 Device 13 | . 2 15 15 Storage 2 | . 14 1 . Energy Gun 9 | . 12 9 7 Energy Cannon 1 | . . . 4 Ballistic Gun 3 | . 14 3 . Ballistic Cannon 3 | . . 5 2 Launcher 1 | . . . 3 Impact Weapon 1 | . . 2 . Slashing Weapon 2 | . . . 5 Peak Build Rating 35 | 5 10 24 35 Average Rating 21 | 3 8 19 27 On Entrance 9 | . 5 10 22 Avg Prop Armor Cover (%) 10 | 10 . . . Naked Turns . | . . . . Heaviest Build 39 | 7 16 24 39 Greatest Support 51 | 20 20 51 49 Greatest Overweight (x) 2 | 2 . . 1 Average Overweight (x) . | . . . . Largest Inventory Capacity 8 | 5 8 8 5 Average Capacity 5 | 5 8 5 5 Most Carried 6 | 4 3 6 5 Average Carried 2 | 1 . 1 3 Final Capacity 8 | 5 8 5 5 Final Carried 4 | 1 1 3 4 Class Distribution -------------------- 68% | Mutant 19% | Scavenger-Mutant 6% | Tank 5% | Scavenger-Tank Dominant Class ---------------- Mutant | -10/Materials Mutant | -9/Materials Mutant | -8/Materials Resources | -11 -10 -9 -8 ----------- Run | Yrd Mat Mat Mat Matter Collected 1204 | 208 166 378 452 Remotely . | . . . . Salvage Created 1549 | . 266 489 794 Parts 78 | . 13 30 35 Haulers Intercepted . | . . . . Recyclers Shooed 1 | . . . 1 Parts Field Recycled . | . . . . Retrieved Matter . | . . . . Parts Self-Destructed . | . . . . Prevented . | . . . . Parts Restored . | . . . . Kills | -11 -10 -9 -8 ------- Run | Yrd Mat Mat Mat Combat Hostiles Destroyed 41 | . 5 17 19 Melee 10 | . . 1 9 Guns 21 | . 5 12 4 Cannons 5 | . . 1 4 AOE 2 | . . . 2 Classes Destroyed 9 | . 2 3 4 Worker 1 | . . . 1 Builder 1 | . 1 . . Operator 1 | . . . 1 Watcher 1 | . . . 1 Swarmer 11 | . . 8 3 Grunt 21 | . 5 5 11 Brawler 1 | . . . 1 Duelist 1 | . . 1 . Sentry 7 | . . 3 4 Best Kill Streak 5 | . 2 5 4 Combat Bots Only 5 | . 2 5 4 Max Kills in Single Turn 2 | . 1 1 2 Gunslinging . | . . . . Exploded 1 | . . . 1 Melee 1 | . . 1 1 Uniques/NPCs Destroyed . | . . . . Combat | -11 -10 -9 -8 -------- Run | Yrd Mat Mat Mat Hostile Shots Fired 408 | . 23 232 153 Missed 131 | . 2 77 52 Hits 277 | . 21 155 101 Melee 10 | . . 8 2 Projectile 267 | . 21 147 99 Critical Strikes 9 | . . 2 7 Damage Taken 3465 | . 258 1425 1782 Core 903 | . 80 268 555 Absorbed by Shields 220 | . . 220 . Core Remaining (%) 67 | 100 68 33 . Volleys Fired 93 | . 23 48 22 Largest 3 | . 2 2 3 Hottest 132 | . 85 105 132 Shots Fired 159 | . 39 72 48 Gun 129 | . 39 68 22 Cannon 26 | . . 4 22 Launcher 4 | . . . 4 Special . | . . . . Kinetic 76 | . 23 33 20 Thermal 66 | . 5 39 22 Explosive 4 | . . . 4 Electromagnetic 13 | . 11 . 2 Robot Hit Streak 16 | . 16 6 9 Robot Miss Streak 4 | . 2 4 2 Penetration Max . | . . . . Secondary Targets 2 | . . 2 . Max Gunslinging Chain 1 | . . 1 . Shots Hit Robots 153 | . 28 60 65 Core Hits 64 | . 11 19 34 Critical Kills 1 | . . 1 . Critical Parts Destroyed 4 | . 1 3 . Critical Strikes 12 | . 2 5 5 Burn 5 | . 1 1 3 Destroy 1 | . 1 . . Smash 4 | . . 4 . Sever 2 | . . . 2 Melee Attacks 75 | . . 27 48 Impact 27 | . . 27 . Slashing 48 | . . . 48 Piercing . | . . . . Sneak Attacks 3 | . . . 3 Combat Hostiles . | . . . . Follow-up Attacks . | . . . . Damage Inflicted 3730 | . 393 1203 2134 Guns 1115 | . 364 527 224 Cannons 388 | . . 58 330 Explosions 458 | . 29 . 429 Melee 1763 | . . 612 1151 Ramming 6 | . . 6 . Kinetic 763 | . 222 237 304 Thermal 711 | . 59 348 304 Explosive 349 | . . . 349 Electromagnetic 138 | . 112 . 26 Impact 612 | . . 612 . Slashing 1151 | . . . 1151 Piercing . | . . . . Highest Corruption . | . . . . Average Corruption . | . . . . Corruption Purged . | . . . . Corruption Blocked . | . . . . Overload Shots . | . . . . Overflow Damage 210 | . . 129 81 Projectiles . | . . . . Explosions 24 | . . . 24 Melee 186 | . . 129 57 Knockbacks 6 | . . . 6 Impact . | . . . . Kinetic 5 | . . . 5 Secondary 1 | . . . 1 Self-Inflicted Damage 18 | . . . 18 Shots 1 | . . . 1 Rammed . | . . . . Targets Rammed 2 | . . 2 . Kicked 2 | . . 2 . Crushed . | . . . . Highest Temperature 496 | . 102 496 468 Average Temperature 148 | . 33 133 212 Received Heat Transfer 1074 | . 138 279 657 Effects 19 | . . 3 16 Shutdowns 6 | . . 1 5 Energy Bleed 6 | . . 1 5 Interference 4 | . . 1 3 Matter Decay 3 | . . . 3 Siege Activations . | . . . . Martial Activations . | . . . . Shielding Activations . | . . . . Robots Disrupted . | . . . . Combat Hostiles . | . . . . Robots Corrupted 3 | . . 3 . Combat Hostiles 3 | . . 3 . Parts Fried 3 | . . 3 . Impact Corruptions 8 | . . 8 . Robots Melted . | . . . . Combat Hostiles . | . . . . Parts Melted 1 | . . . 1 Heat Transferred 1903 | . 198 878 827 Parts Sabotaged . | . . . . Parts Stolen . | . . . . Parts Stripped . | . . . . Power Chain Reactions 1 | . 1 . . Alert | -11 -10 -9 -8 ------- Run | Yrd Mat Mat Mat Maximum Alert Level 1 | . . . 1 Low Security (%) 88 | 100 100 100 69 Level 1 11 | . . . 30 Level 2 . | . . . . Level 3 . | . . . . Level 4 . | . . . . Level 5 . | . . . . High Security . | . . . . Max Security . | . . . . Peak Influence 282 | . 42 84 282 Initial 5 | . . 5 . Average 80 | . 18 24 173 Influence Increases 1333 | . 162 411 760 Destroy 0b10 Robot/C 820 | . 100 340 380 Destroy 0b10 Robot/NC 20 | . 5 . 15 Destroy Leader 182 | . 20 70 92 Disable Machine 90 | . . . 90 Destroy Structure 41 | . 7 1 33 Lose Combat Pursuer 180 | . 30 . 150 Influence Decreases 1101 | . 147 426 528 Entered New Map 10 | . . 10 . Time Decay 911 | . 137 356 418 Lost Part 180 | . 10 60 110 Squads Dispatched 5 | . 1 1 3 Investigation . | . . . . Extermination . | . . . . Reinforcement 5 | . 1 1 3 Assault . | . . . . Garrison . | . . . . Intercept . | . . . . Searches Triggered . | . . . . Construction Impeded . | . . . . Haulers Reinforced . | . . . . Active Scanning Responses . | . . . . Cargo Convoy Interrupts . | . . . . Stealth | -11 -10 -9 -8 --------- Run | Yrd Mat Mat Mat Distress Signals 3 | . 1 . 2 Communications Jammed . | . . . . Distress Signals . | . . . . Times Spotted 68 | . 11 25 32 Peak Tracking Total 8 | . 3 7 8 Tactical Retreats 6 | . 2 . 4 Traps | -11 -10 -9 -8 ------- Run | Yrd Mat Mat Mat Traps Triggered 1 | . . . 1 Indirectly . | . . . . Trap Hack Attempts . | . . . . Triggered . | . . . . Disarmed . | . . . . Reprogrammed . | . . . . Reused . | . . . . Traps Extracted . | . . . . Installed . | . . . . Triggered . | . . . . Machines | -11 -10 -9 -8 ---------- Run | Yrd Mat Mat Mat Machines Disabled 6 | . . . 6 Max in Single Turn 5 | . . . 5 Machines Repaired . | . . . . Machines Dismantled . | . . . . Machines Sabotaged . | . . . . Overloaded Fab Kills . | . . . . Hacking | -11 -10 -9 -8 --------- Run | Yrd Mat Mat Mat Machines Accessed 4 | . 2 1 1 Terminals 3 | . 2 1 . Fabricators . | . . . . Repair Stations . | . . . . Recycling Units . | . . . . Scanalyzers 1 | . . . 1 Garrison Access . | . . . . Total Hacks 6 | . 2 1 3 Successful 3 | . 1 . 2 Failed 2 | . 1 1 . Catastrophic . | . . . . Database Lockouts 1 | . . . 1 Manual . | . . . . Terminals 3 | . 2 1 . Fabricators . | . . . . Repair Stations . | . . . . Recycling Units . | . . . . Scanalyzers 3 | . . . 3 Garrison Access . | . . . . Terminal Hacks 1 | . 1 . . Locate Traps 1 | . 1 . . Fabricator Hacks . | . . . . Repair Station Hacks . | . . . . Recycling Unit Hacks . | . . . . Scanalyzer 2 | . . . 2 Retrieve Study 2 | . . . 2 Garrison Access Hacks . | . . . . Unauthorized Hacks . | . . . . Terminals . | . . . . Fabricators . | . . . . Repair Stations . | . . . . Recycling Units . | . . . . Scanalyzers . | . . . . Garrison Access . | . . . . Data Cores Recovered . | . . . . Used . | . . . . Hacking Detections 3 | . 1 1 1 Full Trace Events . | . . . . Feedback Events . | . . . . Feedback Blocked . | . . . . Robot Schematics Acquired . | . . . . Robots Built . | . . . . Authchips . | . . . . Time . | . . . . Total Robot Build Rating . | . . . . Part Schematics Acquired . | . . . . Parts Built . | . . . . Authchips . | . . . . Time . | . . . . Total Part Build Rating . | . . . . Part Studies Acquired 2 | . . . 2 Parts Repaired . | . . . . Time . | . . . . Parts Recycled . | . . . . Recycled Matter . | . . . . Retrieved Matter . | . . . . Retrieved Components . | . . . . Parts Scanalyzed . | . . . . Part Schematics Acquired . | . . . . Parts Damaged . | . . . . Bothacking | -11 -10 -9 -8 ------------ Run | Yrd Mat Mat Mat Used RIF Installer . | . . . . Robots Hacked . | . . . . Non-combat . | . . . . Combat . | . . . . Robot Hacks Applied . | . . . . Relay Couplers Released . | . . . . Fabnet Peak Effective % . | . . . . Robots Rewired . | . . . . Allies Hacked . | . . . . Hacks Repelled . | . . . . Allies | -11 -10 -9 -8 -------- Run | Yrd Mat Mat Mat Total Allies . | . . . . Largest Group . | . . . . Highest-Rated Group . | . . . . Highest-Rated Ally . | . . . . Total Orders . | . . . . Ally Attacks . | . . . . Total Damage . | . . . . Kills . | . . . . Allies Corrupted . | . . . . Allies Melted . | . . . . Intel | -11 -10 -9 -8 ------- Run | Yrd Mat Mat Mat Active Infowar (turns) 392 | . 63 329 . Terrain 392 | . 63 329 . Robot Analysis Total . | . . . . Derelict Logs Recovered . | . . . . Drone Launches . | . . . . Drone Recoveries . | . . . . Exploration | -11 -10 -9 -8 ------------- Run | Yrd Mat Mat Mat Turns Passed 2989 | 36 327 1481 1145 Spaces Moved 1827 | 25 189 918 695 Core 8 | 8 . . . Treads . | . . . . Legs 1819 | 17 189 918 695 Wheels . | . . . . Hover . | . . . . Flight . | . . . . Fastest Speed 50 | 50 120 120 110 Average Speed 124 | 101 120 126 123 Slowest Speed 200 | 150 120 130 200 Overloaded Moves . | . . . . Propulsion Burnouts . | . . . . Robots Hopped . | . . . . Potential Cave-ins . | . . . . Cave-ins Triggered . | . . . . Exploration Rate (%) 37 | 3 40 47 61 Regions Visited 3 Branch Regions . Pre-discovered Areas . | . . . . Known Exits Taken . | . . . . Unknown Exits Taken 3 | 1 1 1 . Scrap Searched . | . . . . Spaces Dug . | . . . . Terrain Destroyed 40 | . 6 . 34 Melee . | . . . . Projectile 1 | . . . 1 AOE 39 | . 6 . 33 Terrain Rammed . | . . . . Walls Destroyed . | . . . . Machines Disabled . | . . . . Actions | -11 -10 -9 -8 --------- Run | Yrd Mat Mat Mat Total 2305 | 35 253 1141 876 Wait 125 | . 22 52 51 Move 1824 | 24 188 917 695 Hop . | . . . . Pick Up 59 | 6 6 30 17 Fast Attach . | . . . . Attach 60 | 5 7 28 20 Detach 35 | . 4 19 12 Swap . | . . . . Drop 32 | . 3 18 11 Fire 93 | . 23 48 22 Melee 75 | . . 27 48 Ram . | . . . . Kick 2 | . . 2 . Crush . | . . . . Escape Stasis . | . . . . Rewire . | . . . . Trap . | . . . . Miscellaneous . | . . . . Route ------- -11/Scrapyard -10/Materials -9/Materials -8/Materials History --------- Turn | Location | Event 13 | -11/Scrapyard | Discovered new exit (range 15) 37 | -11/Scrapyard | Entered Materials 316 | -10/Materials | Discovered new exit (range 16) 364 | -10/Materials | Entered another Materials area 364 | -9/Materials | Evolved 2 slots: Power x1, Propulsion x1 530 | -9/Materials | Lost 3 parts (1p1n1w) 587 | -9/Materials | Build established: Scavenger-Mutant 930 | -9/Materials | Build established: Mutant 961 | -9/Materials | Core integrity fell below 50% 1819 | -9/Materials | Discovered new exit (range 13) 1845 | -9/Materials | Entered another Materials area 1845 | -8/Materials | Evolved 2 slots: Power x1, Weapon x1 1856 | -8/Materials | Central database locked down 2748 | -8/Materials | Lost 4 parts (1p1n1u1w) 2907 | -8/Materials | Core integrity fell below 50% 2978 | -8/Materials | Core integrity fell below 20% 2990 | -8/Materials | Destroyed by Y-45 Defender with Heavy Assault Rifle Last Messages --------------- Y-45 Defender Lgt. Treads severed. Y-45 Defender destroyed. Acquired 101 matter. K-01 Serf collects debris. Acquired Particle Gun. Acquired 9 matter. K-01 Serf cleans the Nuclear Reactor. Field Laser destroyed. B-36 Bruiser destroyed. Lgt. Nuclear Core destroyed. G-47 Trooper destroyed. K-01 Serf collects debris. K-01 Serf destroyed. G-47 Trooper destroyed. R-06 Scavenger collects Aluminum Leg. R-06 Scavenger collects Lgt. Nuclear Core. Ion Engine destroyed. R-06 Scavenger collects Sml. Matter Pod. Y-45 Defender destroyed. R-06 Scavenger collects Hammer. Map ----- +----------------------------------------------------+ | ??? """??? #??????????????????????????????????? | | ???? ?## ##?????????????????????????????????? | | ?####+### #?????????????????????????????????? | | #?# % #?????????????????????????????????? | | ??# % #?????????????????????????????????? | | ### #?????????????????????????????????? | | #% #### * #?????????????????????????????????? | | " # ####!#####?????????????????????????????????? | | " # #### #?????????????????????????????????????? | | + #?## #?????????????????????????????????????? | | # #??# #?????????????????????????????????????? | | # #??# #?????????????????????????????????????? | | !# #??# #?????????????????????????????????????? | | # ###??# #?????????????????????????????????????? | | ### #????# #???????????????? #?????????????????? | | ??# #????# #???????????????# #?????????????????? | | ??# #????# #??????##??????## #?????????????????? | | ??# #????# #??????# ??? # #?????????????????? | | ??# #????# #??????# ??? # #?????????????????? | | ??# #????# #??????# """ # #?????????????????? | | ??# #??### #??????#! """ # #?????????????????? | | ??# #??# #??????# # #?????????????????? | | ??# #??# #?????##!!! """ # #?????????????????? | | ### #??# #?????# !! """ # #?????????????????? | | #??# #??????#!! =""" # #?????????????????? | | #??# #??????# [%%@Y# #?????????????????? | | #??# #??????###+##+### #?????????????????? | | #??# #????????# /== #?????????????????? | | #??# #????????# !%* #?????????????????? | | #### #?######## #?????????????????? | | ## #?#% #####+### #?????????????????? | | ! !## #?# ## ! ## #?????????????????? | | #!!!!### #?# / ## #?????????????????? | | ######?# #?# ## ## ##????????????????? | | ???????# #?# ## """ # ####### [ #????? | | ???????# #?## ### """ # #????? | | ???????# #??# #?# """ # " #????? | | ???????# #??# #?# # = #????? | | ???????# #??# #?#[ # ####### #????? | | ???????#% #??# ###############????????## #????? | | ???????# #??# # #????????????????????? | | ???????# #### # #????????????????????? | | ######?# # #????????????????????? | | # # + #????????????????????? | | # # # #????????????????????? | | # + ##### ## #????????????????????? | | # # #???# ## #????????????????????? | | # "Y" # #???# ## #????????????????????? | | # """?# #####/############????????????????????? | | ######?# # [== #???????????????????????????? | +----------------------------------------------------+ Best States ------------- Heat Dissipation 50 Energy Generation 32 Energy Capacity 625 Matter Stores 300 Matter Capacity 300 Sight Range 16 Terrain Scan Range 14 Terrain Scan Density 85 Evasion (%) 63 Item Schematics ----------------- None Robot Schematics ------------------ None Fabricated ------------ Nothing Repaired ---------- Nothing Studied --------- Imp. Grenade Launcher | -8/Materials | Hacked Imp. Light Cannon | -8/Materials | Hacked Alien Tech Used ----------------- None Achievements -------------- Bumper Bots Challenges ------------ None Game ------ Seed MyomerMissileProcessor Manual? 0 Play Time 00:33:37 Cumulative 5.1 hours Start 2026.04.20 @ 13:51:17 End 2026.04.20 @ 14:19:35 Sessions 1 Manual Loads 0 Difficulty Rogue Special Mode None Game No. 16 Rogue 16 Adventurer 0 Explorer 0 Win Type - Total 0 Types 0/0/0/0/0/0/0/0/0/0 Lore% 7 Gallery% 9 Achievement% 8 Wizard Run 0 Options --------- Layout 1 ASCII 0 Keyboard 0 Movement Numpad Keybinds 0 Fullscreen 1 Font 32/SmallcapsGlow Map View 50x35 Zoom Use 0% Tactical HUD 0 Map Filters NONE Filters NONE Steam 1 RUN: b8920ab0-b6fb-4db9-8245-6ca914579a86